Cogmind - Beta 13 @@@ ROGUE MODE // 2024.05.21 @ 20:20:15 Player: CONM Result: Destroyed by C-35 Carver with Carbide Saw Performance ------------- Evolutions (5) 2500 Regions Visited (11) 2200 Robots Destroyed (134) 670 Value Destroyed (4148) 4148 Prototype IDs (7) 140 Alien Tech Used (0) 0 Bonus (1099) 1099 TOTAL SCORE: 10757 Bonus ------- High Alert Combat Kills 228 Follower Combat Kills 871 Cogmind --------- Core Integrity 0/1000 Matter 96/300 Energy 100/100 System Corruption 0% Temperature Cool (0) Movement Core (50) Location -5/Factory Parts ------- > --- POWER (2) -------- (None) > --- PROPULSION (4) --- (None) > --- UTILITY (9) ------ Improved Signal Interpreter > --- WEAPON (2) ------- (None) > --- INVENTORY (5) ---- Compact Wheel Improved Matter Compressor (0) Weight Redist. System Cloaking Device Peak State ------------ > --- POWER ------------ Micro Nuclear Core Antimatter Reactor > --- PROPULSION ------- Armored Treads Armored Treads Armored Treads Advanced Treads > --- UTILITY ---------- Improved Heat Sink High-capacity Storage Unit Enhanced Optical Array Improved Medium Armor Plating Hacking Suite Hacking Suite Hacking Suite > --- WEAPON ----------- Proton Cannon Proton Cannon > --- INVENTORY -------- Improved Ion Engine Nuclear Core Light Nuclear Core Light Nuclear Core Xenon Bombardment Thruster Nuclear Pulse Thruster Improved Heat Sink Medium Matter Pod Weight Redist. System Visual Processing Unit Enhanced Optical Array Transport Network Coupler Targeting Computer Hardlight Generator Improved Shield Generator Improved Shield Generator Thermic Laser Proton Cannon Heavy Battle Rifle Power Maul [Rating: 61] Favorites ----------- Power Light Nuclear Core Engine Light Deuterium Engine Power Core Light Nuclear Core Reactor Antimatter Reactor Propulsion Light Treads Treads Light Treads Leg Aluminum Leg Wheel Compact Wheel Flight Unit Cooled Cesium-ion Thruster Utility Hacking Suite Device Improved Heat Sink Storage High-capacity Storage Unit Processor Improved Signal Interpreter Hackware Hacking Suite Protection Improved Medium Armor Plating Weapon Heavy Particle Cannon Energy Gun Beam Rifle Energy Cannon Heavy Particle Cannon Ballistic Gun Light Assault Rifle Launcher Missile Launcher Impact Weapon Power Maul Slashing Weapon Greatsword Build | -11 -10 -10 -9 -9 -8 -7 -6 -6 -6 -6 -5 ------- Run | Yrd Mat Min Mat Min Mat Fac Fac Was Fac Ext Fac Slots Evolved 10 | . . . 2 . 2 2 2 . . . 2 Power 1 | . . . . . . 1 . . . . . Propulsion 2 | . . . 1 . 1 . . . . . . Utility 7 | . . . 1 . 1 1 2 . . . 2 Weapon . | . . . . . . . . . . . . Parts Attached 220 | 7 . 2 31 1 24 84 8 2 29 10 22 Power 31 | 1 . 1 3 . 4 14 2 1 3 . 2 Engine 15 | 1 . . 3 . 3 6 . . 1 . 1 Core 14 | . . 1 . . 1 8 2 . 1 . 1 Reactor 2 | . . . . . . . . 1 1 . . Propulsion 63 | 2 . 1 9 . 9 25 2 . 7 3 5 Treads 48 | 2 . 1 8 . 9 24 2 . 2 . . Leg 2 | . . . 1 . . 1 . . . . . Wheel 2 | . . . . . . . . . . . 2 Hover . | . . . . . . . . . . . . Flight 11 | . . . . . . . . . 5 3 3 Utility 58 | 2 . . 9 1 5 13 2 1 12 1 12 Device 31 | 1 . . 3 1 1 6 1 . 6 1 11 Storage 7 | 1 . . 3 . 1 . . . 2 . . Processor 4 | . . . 1 . . 1 . 1 . . 1 Hackware 3 | . . . 1 . . 1 1 . . . . Protection 13 | . . . 1 . 3 5 . . 4 . . Artifact . | . . . . . . . . . . . . Weapon 68 | 2 . . 10 . 6 32 2 . 7 6 3 Energy Gun 17 | . . . 7 . . 5 . . 2 3 . Energy Cannon 20 | . . . . . 4 14 2 . . . . Ballistic Gun 2 | 2 . . . . . . . . . . . Ballistic Cannon . | . . . . . . . . . . . . Launcher 14 | . . . 3 . 2 5 . . 1 3 . Special Weapon . | . . . . . . . . . . . . Impact Weapon 14 | . . . . . . 7 . . 4 . 3 Slashing Weapon 1 | . . . . . . 1 . . . . . Piercing Weapon . | . . . . . . . . . . . . Special Melee Weapon . | . . . . . . . . . . . . Unidentified Prototypes 2 | . . . . . . . . . 2 . . Parts Lost 59 | . . 2 3 . 6 25 . . 4 8 11 Power 14 | . . 1 1 . 1 7 . . . 1 3 Propulsion 19 | . . 1 . . 4 8 . . 1 2 3 Utility 18 | . . . 1 . 1 5 . . 3 3 5 Weapon 8 | . . . 1 . . 5 . . . 2 . Highest Loss Streak 9 | . . 2 1 . 3 4 . . 1 5 9 To Critical Strikes . | . . . . . . . . . . . . Average Slot Usage (%) 91 | . 100 95 94 100 97 90 92 100 92 74 59 Engine 4 | . 14 1 2 11 5 9 . . . . . Core 4 | . . 11 7 . 2 2 12 9 6 13 7 Treads 25 | . 28 24 27 33 35 27 21 26 21 . . Flight 1 | . . . . . . . . . 1 19 12 Device 11 | . 14 14 14 11 9 9 5 6 9 13 23 Storage 7 | . 14 14 11 11 9 7 6 6 5 . . Processor 2 | . . . 2 . . 6 . 6 2 . . Hackware 9 | . . . 2 11 9 9 19 20 15 13 10 Protection 3 | . . . . . 8 1 13 6 8 10 . Energy Gun 5 | . . . 21 22 2 . . . 2 1 . Energy Cannon 6 | . . . . . 15 9 12 13 4 . . Ballistic Gun 1 | . 28 28 . . . . . . . . . Impact Weapon 1 | . . . . . . 2 . . 2 . 2 Naked Turns . | . . . . . . . . . . . . Heaviest Build 105 | 12 12 14 96 94 105 72 83 86 87 31 21 Greatest Support 96 | 40 40 40 63 63 83 96 82 82 82 30 24 Greatest Overweight (x) 3 | . . . 1 1 2 3 1 1 3 3 2 Average Overweight (x) . | . . . . 1 . . 1 . . . . Largest Inventory Capacity 25 | 8 8 8 25 25 25 20 20 20 20 5 5 Average Capacity 18 | 7 8 8 17 25 23 20 20 20 18 5 5 Most Carried 25 | 4 8 8 25 25 25 20 18 20 20 5 5 Average Carried 16 | 1 5 7 11 24 23 19 16 17 18 4 4 Final Capacity 25 | 8 8 8 25 25 25 20 20 20 5 5 5 Final Carried 25 | 4 8 7 25 24 25 16 18 20 4 3 4 Class Distribution -------------------- 57% | Scavenger-Mutant 33% | Hacker-Mutant 6% | Mutant Dominant Class ---------------- Mutant | -10/Materials Mutant | -10/Mines Scavenger-Mutant | -9/Materials Scavenger-Mutant | -9/Mines Scavenger-Mutant | -8/Materials Scavenger-Mutant | -7/Factory Hacker-Mutant | -6/Factory Hacker-Mutant | -6/Waste Hacker-Mutant | -6/Factory Hacker-Sprinter | -6/Extension Hacker-Mutant | -5/Factory Resources | -11 -10 -10 -9 -9 -8 -7 -6 -6 -6 -6 -5 ----------- Run | Yrd Mat Min Mat Min Mat Fac Fac Was Fac Ext Fac Matter Collected 3066 | 270 72 131 451 242 240 1021 178 14 257 . 190 Remotely . | . . . . . . . . . . . . Salvage Created 4937 | 28 125 131 1250 225 1020 1674 178 . 284 . 22 Parts 242 | 5 8 12 60 8 49 79 3 . 14 . 4 Haulers Intercepted 11 | . 1 . 4 . 3 2 1 . . . . Recyclers Shooed 4 | . . . . . 1 1 . . 2 . . Parts Field Recycled . | . . . . . . . . . . . . Retrieved Matter . | . . . . . . . . . . . . Parts Self-Destructed . | . . . . . . . . . . . . Prevented . | . . . . . . . . . . . . Kills | -11 -10 -10 -9 -9 -8 -7 -6 -6 -6 -6 -5 ------- Run | Yrd Mat Min Mat Min Mat Fac Fac Was Fac Ext Fac Combat Hostiles Destroyed 97 | . 2 5 21 5 20 35 1 . 8 . . Melee 2 | . . . . . . 2 . . . . . Guns 32 | . 2 5 14 4 2 5 . . . . . Cannons 35 | . . . . . 10 23 1 . 1 . . AOE 22 | . . . 4 . 6 5 . . 7 . . Classes Destroyed 15 | 1 2 1 5 1 2 3 . . . . . Worker 6 | . . . 1 . 2 3 . . . . . Builder 9 | . . . . 1 1 6 . . 1 . . Tunneler 1 | 1 . . . . . . . . . . . Hauler 11 | . 1 . 4 . 3 2 1 . . . . Recycler 4 | . . . 2 . 1 1 . . . . . Operator 5 | . . . 2 . 1 1 . . . . 1 Watcher 1 | . . . . . 1 . . . . . . Swarmer 21 | . . 3 4 . 7 5 . . 2 . . Cutter 3 | . . . . . . 3 . . . . . Grunt 48 | . 2 2 11 5 7 18 . . 3 . . Brawler 2 | . . . 2 . . . . . . . . Sentry 13 | . . . 4 . 5 4 . . . . . Specialist 1 | . . . . . . 1 . . . . . Hunter 2 | . . . . . 1 . 1 . . . . Programmer 6 | . . . . . . 4 . . 2 . . Savage 1 | . . . . . . . . . 1 . . Best Kill Streak 7 | 1 2 4 7 3 7 7 2 . 4 . 1 Combat Bots Only 5 | . 2 4 5 3 5 4 1 . 3 . . Max Kills in Single Turn 4 | 1 1 1 2 1 3 4 1 . 2 . 1 Gunslinging . | . . . . . . . . . . . . Exploded 3 | . . . 2 . 2 3 . . 1 . . Melee 1 | . . . . . . 1 . . . . . Uniques/NPCs Destroyed . | . . . . . . . . . . . . Combat | -11 -10 -10 -9 -9 -8 -7 -6 -6 -6 -6 -5 -------- Run | Yrd Mat Min Mat Min Mat Fac Fac Was Fac Ext Fac Hostile Shots Fired 1069 | . 6 41 112 28 111 467 12 . 68 96 128 Missed 352 | . . 11 30 10 33 137 2 . 20 55 54 Damage Taken 11180 | . 67 353 981 228 1041 5208 183 18 983 673 1445 Core 2215 | . 12 76 164 . 77 659 . . 83 138 1006 Absorbed by Shields 36 | . . . . . . . . . 36 . . Redirected to Shielding 53 | . . . . . 53 . . . . . . Regen/Repaired (Parts) 769 | . . . 257 . 81 . . . 431 . . Core Remaining (%) 64 | 100 . 64 . 59 86 5 . . . 74 . Volleys Fired 317 | 5 13 17 84 13 50 107 7 . 15 6 . Largest 2 | 2 2 2 2 2 2 2 2 . 2 2 . Hottest 160 | 40 40 40 112 112 150 160 150 . 150 121 . Shots Fired 597 | 10 26 34 167 26 100 185 14 . 24 11 . Gun 325 | 10 26 34 164 26 26 25 . . 8 6 . Cannon 241 | . . . . . 71 150 14 . 6 . . Launcher 31 | . . . 3 . 3 10 . . 10 5 . Special . | . . . . . . . . . . . . Kinetic 70 | 10 26 34 . . . . . . . . . Thermal 476 | . . . 164 26 97 175 . . 8 6 . Explosive 31 | . . . 3 . 3 10 . . 10 5 . Electromagnetic 20 | . . . . . . . 14 . 6 . . Robot Hit Streak 26 | 5 19 10 21 7 17 26 4 . 8 8 . Robot Miss Streak 5 | 1 4 3 3 1 3 4 5 . 2 1 . Penetration Max . | . . . . . . . . . . . . Secondary Targets 3 | . . 2 . 1 . . . . . . . Max Gunslinging Chain 1 | . . 1 . 1 . . . . . . . Shots Hit Robots 421 | 7 20 23 114 20 70 141 6 . 16 2 2 Core Hits 219 | 2 7 8 44 7 41 85 4 . 19 1 1 Critical Kills . | . . . . . . . . . . . . Critical Parts Destroyed . | . . . . . . . . . . . . Critical Strikes 10 | . . . 6 2 2 . . . . . . Burn 10 | . . . 6 2 2 . . . . . . Melee Attacks 88 | . . . . . . 51 . . 17 . 20 Impact 74 | . . . . . . 37 . . 17 . 20 Slashing 14 | . . . . . . 14 . . . . . Piercing . | . . . . . . . . . . . . Sneak Attacks 4 | . . . . . . 4 . . . . . Combat Hostiles . | . . . . . . . . . . . . Follow-up Attacks . | . . . . . . . . . . . . Damage Inflicted 11291 | 80 201 259 1939 310 2072 4919 273 . 1076 50 112 Guns 3441 | 80 201 259 1710 293 302 491 . . 58 47 . Cannons 4362 | . . . . . 1225 2872 202 . 63 . . Explosions 2522 | . . . 214 . 545 806 71 . 883 3 . Melee 877 | . . . . . . 721 . . 49 . 107 Ramming 89 | . . . 15 17 . 29 . . 23 . 5 Kinetic 540 | 80 201 259 . . . . . . . . . Thermal 6998 | . . . 1710 293 1527 3363 . . 58 47 . Explosive 2350 | . . . 214 . 545 634 71 . 883 3 . Electromagnetic 437 | . . . . . . 172 202 . 63 . . Impact 560 | . . . . . . 404 . . 49 . 107 Slashing 317 | . . . . . . 317 . . . . . Piercing . | . . . . . . . . . . . . Highest Corruption 7 | . . . 1 1 . 7 . . 4 4 . Average Corruption 2 | . . . 1 1 . 4 . . 3 4 . Corruption Purged . | . . . . . . . . . . . . Corruption Blocked . | . . . . . . . . . . . . Effects 87 | . . . 17 6 . 38 . . 22 4 . Message Errors 24 | . . . 4 3 . 11 . . 6 . . Matter Fused 25 | . . . 6 3 . 10 . . 6 . . Heat Flow Errors 9 | . . . 1 . . 3 . . 3 2 . Energy Discharges 7 | . . . 2 . . 3 . . 2 . . Parts Rejected 2 | . . . . . . 2 . . . . . Parts Fused 2 | . . . . . . 1 . . 1 . . Data Loss (minor) 6 | . . . 1 . . 3 . . 1 1 . Data Loss (major) 4 | . . . 1 . . 2 . . 1 . . Misfires 4 | . . . . . . 2 . . 2 . . Alerts 4 | . . . 2 . . 1 . . . 1 . Overload Shots . | . . . . . . . . . . . . Overflow Damage 424 | . . . . . 59 295 9 . 60 . 1 Projectiles 63 | . . . . . 15 39 9 . . . . Explosions 139 | . . . . . 44 44 . . 51 . . Melee 222 | . . . . . . 212 . . 9 . 1 Knockbacks 1 | . . . . . . 1 . . . . . Impact 1 | . . . . . . 1 . . . . . Kinetic . | . . . . . . . . . . . . Secondary . | . . . . . . . . . . . . Self-Inflicted Damage 134 | . . . 9 . . 73 . . 1 49 2 Shots 6 | . . . 1 . . 2 . . 1 2 . Rammed 7 | . . . 2 . . 1 . . 2 . 2 Targets Rammed 9 | . . . 2 1 . 2 . . 2 . 2 Kicked . | . . . . . . . . . . . . Crushed 2 | . . . . 1 . 1 . . . . . Highest Temperature 573 | . 6 25 333 111 369 573 120 . 248 385 . Average Temperature 111 | . 6 9 95 47 77 160 57 . 61 122 . Received Heat Transfer 2598 | . 36 162 366 129 414 1209 . 9 93 180 . Effects 33 | . . . 2 . 2 28 . . . 1 . Shutdowns 9 | . . . . . . 8 . . . 1 . Energy Bleed 3 | . . . . . 1 2 . . . . . Interference 7 | . . . 1 . . 6 . . . . . Matter Decay 3 | . . . 1 . . 2 . . . . . Short Circuit 2 | . . . . . 1 1 . . . . . Damage (minor) 3 | . . . . . . 3 . . . . . Damage (major) 6 | . . . . . . 6 . . . . . Siege Activations . | . . . . . . . . . . . . Robots Corrupted . | . . . . . . . . . . . . Combat Hostiles . | . . . . . . . . . . . . Parts Fried 4 | . . . . . . 3 1 . . . . Impact Corruptions 5 | . . . . . . 3 . . 1 . 1 Robots Melted 6 | . . . 3 1 2 . . . . . . Combat Hostiles 6 | . . . 3 1 2 . . . . . . Parts Melted 39 | . . . 10 3 11 15 . . . . . Heat Transferred 14247 | . . . 4810 888 2738 5587 . . 150 74 . Parts Sabotaged . | . . . . . . . . . . . . Parts Stolen . | . . . . . . . . . . . . Parts Stripped . | . . . . . . . . . . . . Power Chain Reactions 2 | . . . . . . 2 . . . . . Alert | -11 -10 -10 -9 -9 -8 -7 -6 -6 -6 -6 -5 ------- Run | Yrd Mat Min Mat Min Mat Fac Fac Was Fac Ext Fac Peak Influence 780 | 5 65 125 305 243 352 666 458 102 780 463 353 Initial 312 | . 3 25 48 118 16 123 312 90 71 273 226 Average 236 | 1 33 109 112 168 125 230 376 92 541 314 250 Maximum Alert Level 3 | . . . 1 1 1 2 2 . 3 2 1 Low Security (%) 47 | 100 100 100 74 48 70 47 . 100 . . 14 Level 1 27 | . . . 25 51 29 22 44 . 10 87 85 Level 2 24 | . . . . . . 29 55 . 86 12 . Level 3 . | . . . . . . . . . 2 . . Level 4 . | . . . . . . . . . . . . Level 5 . | . . . . . . . . . . . . High Security . | . . . . . . . . . . . . Max Security . | . . . . . . . . . . . . Squads Dispatched 45 | . . . 3 . 3 19 1 . 13 . 6 Investigation 10 | . . . 2 . 1 3 . . 1 . 3 Extermination 8 | . . . . . . 4 . . 3 . 1 Reinforcement 19 | . . . 1 . 2 8 1 . 5 . 2 Assault . | . . . . . . . . . . . . Garrison 8 | . . . . . . 4 . . 4 . . Intercept . | . . . . . . . . . . . . Searches Triggered . | . . . . . . . . . . . . Construction Impeded 3 | . . . . . . 1 . . 2 . . Haulers Reinforced 3 | . . . . . . 2 . . 1 . . Active Scanning Responses . | . . . . . . . . . . . . Cargo Convoy Interrupts 1 | . . . . . . 1 . . . . . Stealth | -11 -10 -10 -9 -9 -8 -7 -6 -6 -6 -6 -5 --------- Run | Yrd Mat Min Mat Min Mat Fac Fac Was Fac Ext Fac Distress Signals 11 | . . . 2 . 6 2 . . . . 1 Communications Jammed . | . . . . . . . . . . . . Distress Signals . | . . . . . . . . . . . . Times Spotted 215 | . 3 5 33 6 30 59 3 1 26 14 35 Peak Tracking Total 15 | . 3 4 4 3 7 6 1 1 4 9 15 Tactical Retreats 23 | . . . 3 . . 6 . . 3 4 7 Traps | -11 -10 -10 -9 -9 -8 -7 -6 -6 -6 -6 -5 ------- Run | Yrd Mat Min Mat Min Mat Fac Fac Was Fac Ext Fac Traps Triggered 11 | . . . . . 1 1 2 . 4 3 . Indirectly . | . . . . . . . . . . . . Trap Hack Attempts . | . . . . . . . . . . . . Triggered . | . . . . . . . . . . . . Disarmed . | . . . . . . . . . . . . Reprogrammed . | . . . . . . . . . . . . Reused . | . . . . . . . . . . . . Traps Extracted . | . . . . . . . . . . . . Installed . | . . . . . . . . . . . . Triggered 3 | . . . . . . 2 . . 1 . . Machines | -11 -10 -10 -9 -9 -8 -7 -6 -6 -6 -6 -5 ---------- Run | Yrd Mat Min Mat Min Mat Fac Fac Was Fac Ext Fac Machines Disabled 18 | . . . 3 . . 6 4 . 2 3 . Max in Single Turn 4 | . . . 1 . . 2 4 . . 2 . Garrison Access 5 | . . . . . 1 1 . . 2 . 1 Machines Repaired . | . . . . . . . . . . . . Machines Dismantled . | . . . . . . . . . . . . Machines Sabotaged . | . . . . . . . . . . . . Overloaded Fab Kills . | . . . . . . . . . . . . Hacking | -11 -10 -10 -9 -9 -8 -7 -6 -6 -6 -6 -5 --------- Run | Yrd Mat Min Mat Min Mat Fac Fac Was Fac Ext Fac Machines Accessed 42 | . . . 6 . 6 6 2 . 8 7 7 Terminals 22 | . . . 4 . 2 1 2 . 4 7 2 Fabricators 3 | . . . . . . 2 . . . . 1 Repair Stations 5 | . . . 1 . 1 1 . . 1 . 1 Recycling Units 1 | . . . . . . . . . 1 . . Scanalyzers 6 | . . . 1 . 2 1 . . . . 2 Garrison Access 5 | . . . . . 1 1 . . 2 . 1 Total Hacks 91 | . . . 18 . 16 12 3 . 16 10 16 Successful 60 | . . . 13 . 11 8 1 . 11 5 11 Failed 31 | . . . 5 . 5 4 2 . 5 5 5 Catastrophic 3 | . . . 1 . 1 . . . . . 1 Database Lockouts . | . . . . . . . . . . . . Manual 18 | . . . 5 . 4 . 1 . 2 4 2 Terminals 40 | . . . 9 . 5 1 3 . 7 10 5 Fabricators 6 | . . . . . . 4 . . . . 2 Repair Stations 14 | . . . 5 . 2 1 . . 3 . 3 Recycling Units 2 | . . . . . . . . . 2 . . Scanalyzers 19 | . . . 4 . 7 3 . . . . 5 Garrison Access 10 | . . . . . 2 3 . . 4 . 1 Terminal Hacks 21 | . . . 5 . 1 1 1 . 5 5 3 Record 1 | . . . . . . . . . 1 . . Prototype ID Bank 1 | . . . 1 . . . . . . . . Open Door 2 | . . . . . . . . . . 2 . Open DSF 2 | . . . . . . 1 . . 1 . . Level Access Points 1 | . . . . . . . . . . 1 . Branch Access Points 2 | . . . . . . . . . . 1 1 Machine Index 1 | . . . . . . . 1 . . . . Terminal Index 2 | . . . 1 . . . . . 1 . . Locate Traps 3 | . . . 1 . . . . . . 1 1 Maintenance Status 1 | . . . 1 . . . . . . . . Hauler Manifests 2 | . . . . . . . . . 1 . 1 Zone Layout 3 | . . . 1 . 1 . . . 1 . . Fabricator Hacks 6 | . . . . . . 4 . . . . 2 Load Schematic 3 | . . . . . . 2 . . . . 1 Build 3 | . . . . . . 2 . . . . 1 Repair Station Hacks 9 | . . . 4 . 2 . . . 2 . 1 Scan Component 5 | . . . 2 . 1 . . . 1 . 1 Repair 4 | . . . 2 . 1 . . . 1 . . Recycling Unit Hacks 2 | . . . . . . . . . 2 . . Report Inventory 1 | . . . . . . . . . 1 . . Retrieve Components 1 | . . . . . . . . . 1 . . Scanalyzer 17 | . . . 4 . 7 2 . . . . 4 Insert Component 10 | . . . 2 . 4 1 . . . . 3 Analyze 7 | . . . 2 . 3 1 . . . . 1 Garrison Access Hacks 5 | . . . . . 1 1 . . 2 . 1 Seal Access 5 | . . . . . 1 1 . . 2 . 1 Unauthorized Hacks . | . . . . . . . . . . . . Terminals . | . . . . . . . . . . . . Fabricators . | . . . . . . . . . . . . Repair Stations . | . . . . . . . . . . . . Recycling Units . | . . . . . . . . . . . . Scanalyzers . | . . . . . . . . . . . . Garrison Access . | . . . . . . . . . . . . Data Cores Recovered 2 | . . . 1 . . . . . . . 1 Used . | . . . . . . . . . . . . Hacking Detections 28 | . . . 5 . 3 5 1 . 5 3 6 Full Trace Events 9 | . . . 3 . . 2 . . 1 . 3 Feedback Events . | . . . . . . . . . . . . Feedback Blocked . | . . . . . . . . . . . . Robot Schematics Acquired . | . . . . . . . . . . . . Robots Built . | . . . . . . . . . . . . Authchips . | . . . . . . . . . . . . Time . | . . . . . . . . . . . . Total Robot Build Rating . | . . . . . . . . . . . . Part Schematics Acquired 6 | . . . 2 . 2 1 . . . . 1 Parts Built 5 | . . . . . . 4 . . . . 1 Authchips . | . . . . . . . . . . . . Time 178 | . . . . . . 102 . . . . 76 Total Part Build Rating 9 | . . . . . . 4 . . . . 5 Parts Repaired 4 | . . . 2 . 1 . . . 1 . . Time 91 | . . . 52 . 26 . . . 13 . . Parts Recycled . | . . . . . . . . . . . . Recycled Matter . | . . . . . . . . . . . . Retrieved Matter . | . . . . . . . . . . . . Retrieved Components 3 | . . . . . . . . . 3 . . Parts Scanalyzed 8 | . . . 2 . 3 1 . . . . 2 Part Schematics Acquired 6 | . . . 2 . 2 1 . . . . 1 Parts Damaged . | . . . . . . . . . . . . Bothacking | -11 -10 -10 -9 -9 -8 -7 -6 -6 -6 -6 -5 ------------ Run | Yrd Mat Min Mat Min Mat Fac Fac Was Fac Ext Fac Used RIF Installer . | . . . . . . . . . . . . Robots Hacked . | . . . . . . . . . . . . Non-combat . | . . . . . . . . . . . . Combat . | . . . . . . . . . . . . Robot Hacks Applied . | . . . . . . . . . . . . Relay Couplers Released 3 | . . . . . . 3 . . . . . Programmers 3 | . . . . . . 3 . . . . . Fabnet Peak Effective % . | . . . . . . . . . . . . Robots Rewired . | . . . . . . . . . . . . Allies Hacked . | . . . . . . . . . . . . Hacks Repelled . | . . . . . . . . . . . . Allies | -11 -10 -10 -9 -9 -8 -7 -6 -6 -6 -6 -5 -------- Run | Yrd Mat Min Mat Min Mat Fac Fac Was Fac Ext Fac Total Allies 22 | . . . . . . . . 21 . 1 . Largest Group 21 | . . . . . . . . 21 18 1 . Highest-Rated Group 808 | . . . . . . . . 808 733 39 . Highest-Rated Ally 50 | . . . . . . . . 50 50 39 . Total Orders 7 | . . . . . . . . . 7 . . EXPLORE 6 | . . . . . . . . . 6 . . RETURN 1 | . . . . . . . . . 1 . . Ally Attacks 171 | . . . . . . . . 41 126 4 . Total Damage 5746 | . . . . . . . . 1359 4300 87 . Kills 30 | . . . . . . . . 4 25 1 . Allies Corrupted . | . . . . . . . . . . . . Allies Melted . | . . . . . . . . . . . . Intel | -11 -10 -10 -9 -9 -8 -7 -6 -6 -6 -6 -5 ------- Run | Yrd Mat Min Mat Min Mat Fac Fac Was Fac Ext Fac Robot Analysis Total . | . . . . . . . . . . . . Derelict Logs Recovered 2 | . . 2 . . . . . . . . . Drone Launches 7 | . . . . . . . . . 7 . . Drone Recoveries 4 | . . . . . . . . . 4 . . Exploration | -11 -10 -10 -9 -9 -8 -7 -6 -6 -6 -6 -5 ------------- Run | Yrd Mat Min Mat Min Mat Fac Fac Was Fac Ext Fac Turns Passed 12731 | 235 212 267 2314 561 1919 3664 447 160 2041 226 685 Spaces Moved 6829 | 132 108 136 936 212 768 1667 166 78 997 415 1214 Core 46 | 3 . . . . . . . . . 1 42 Treads 4925 | 129 108 136 936 212 768 1667 166 78 725 . . Legs . | . . . . . . . . . . . . Wheels 18 | . . . . . . . . . . . 18 Hover . | . . . . . . . . . . . . Flight 1840 | . . . . . . . . . 272 414 1154 Fastest Speed 29 | 50 160 160 160 240 160 160 243 163 29 29 30 Average Speed 151 | 157 160 160 196 240 213 173 247 200 175 32 36 Slowest Speed 410 | 160 160 160 240 240 320 410 250 243 317 200 150 Overloaded Moves . | . . . . . . . . . . . . Propulsion Burnouts . | . . . . . . . . . . . . Robots Hopped 4 | . . . . . . . . . . 2 2 Cave-ins Triggered . | . . . . . . . . . . . . Exploration Rate (%) 34 | 5 13 25 53 32 36 39 5 79 46 48 27 Regions Visited 11 Branch Regions 3 Pre-discovered Areas 1 | . . 1 . . . . . . . . . Known Exits Taken 1 | . . . . . . . . . . 1 . Unknown Exits Taken 8 | 1 1 1 1 1 1 1 . . 1 . . Scrap Searched 1 | . . . . 1 . . . . . . . Spaces Dug 96 | . . . 9 . . 37 . . 12 23 15 Terrain Destroyed 268 | . . . 23 . 45 72 21 . 35 57 15 Melee 64 | . . . . . . 37 . . 12 . 15 Projectile 19 | . . . . . 19 . . . . . . AOE 185 | . . . 23 . 26 35 21 . 23 57 . Terrain Rammed 1 | . . . . . . 1 . . . . . Walls Destroyed . | . . . . . . . . . . . . Machines Disabled . | . . . . . . . . . . . . Actions | -11 -10 -10 -9 -9 -8 -7 -6 -6 -6 -6 -5 --------- Run | Yrd Mat Min Mat Min Mat Fac Fac Was Fac Ext Fac Total 8416 | 147 124 154 1231 241 950 2148 188 82 1235 493 1423 Wait 659 | . . . 150 5 60 178 . . 117 1 148 Move 6811 | 131 107 135 935 211 767 1666 166 77 996 410 1210 Hop 4 | . . . . . . . . . . 2 2 Pick Up 125 | 4 4 . 19 4 24 25 6 2 32 1 4 Fast Attach 62 | 7 . 1 8 . 1 19 3 . 14 2 7 Attach 76 | . . 1 3 . 10 24 4 1 10 8 15 Detach 29 | . . . 1 . . 4 . . 4 7 13 Swap 82 | . . . 20 1 13 41 1 1 5 . . Drop 99 | . . . 9 6 25 30 1 1 23 2 2 Fire 317 | 5 13 17 84 13 50 107 7 . 15 6 . Melee 88 | . . . . . . 51 . . 17 . 20 Ram 3 | . . . . . . 1 . . . . 2 Kick . | . . . . . . . . . . . . Crush 7 | . . . 2 1 . 2 . . 2 . . Escape Stasis 54 | . . . . . . . . . . 54 . Rewire . | . . . . . . . . . . . . Trap . | . . . . . . . . . . . . Miscellaneous . | . . . . . . . . . . . . Route ------- -11/Scrapyard -10/Materials -10/Mines (discovered 2 exits: *Mat x2) -9/Materials (discovered 2 exits: *Mat / [*Min]) -9/Mines (discovered 2 exits: *Mat x2) -8/Materials -7/Factory -6/Factory -6/Waste -6/Factory (discovered 2 exits: *Fac / *Ext) -6/Extension (discovered 3 exits: *Fac x2 / Cet) -5/Factory (discovered 2 exits: Upp x2) History --------- Turn | Location | Event 2 | -11/Scrapyard | Discovered new exit (range 16) 236 | -11/Scrapyard | Entered Materials 269 | -10/Materials | Discovered new exit (range 15) 313 | -10/Materials | Build established: Mutant 448 | -10/Materials | Entered Mines 530 | -10/Mines | Discovered new exit (range 8) 572 | -10/Mines | Learned location of Zion (-7) 595 | -10/Mines | Learned Materials garrison access intel 598 | -10/Mines | Discovered new exit (range 10) 715 | -10/Mines | Entered Materials 715 | -9/Materials | Evolved 2 slots: Propulsion x1, Utility x1 1078 | -9/Materials | Build established: Scavenger-Mutant 1674 | -9/Materials | Discovered new exit (range 13) 2443 | -9/Materials | Repaired Lgt. Treads 2471 | -9/Materials | Repaired Lgt. Treads 2967 | -9/Materials | Discovered new exit (range 8) 3029 | -9/Materials | Entered Mines 3077 | -9/Mines | Discovered new exit (range 15) 3195 | -9/Mines | Found a hidden stash of uninstalled traps 3512 | -9/Mines | Discovered new exit (range 9) 3539 | -9/Mines | Joined a pair of Derelicts in attacking an 0b10 outpost 3590 | -9/Mines | Entered Materials 3590 | -8/Materials | Evolved 2 slots: Propulsion x1, Utility x1 3591 | -8/Materials | Loaded intel: 1 garrison access location 3761 | -8/Materials | Lost 3 parts (1p2n) 4327 | -8/Materials | Repaired Lgt. Treads 5117 | -8/Materials | Discovered new exit (range 16) 5509 | -8/Materials | Entered Factory 5509 | -7/Factory | Evolved 2 slots: Power x1, Utility x1 6314 | -7/Factory | Cargo convoy interrupted 6534 | -7/Factory | Garrison activated, responded to threat 7302 | -7/Factory | Lost 3 parts (2p1u) 7602 | -7/Factory | Lost 3 parts (1n1u1w) 7725 | -7/Factory | Fabricated Lgt. Treads (x2) 7796 | -7/Factory | Lost 4 parts (1p1n1u1w) 7910 | -7/Factory | Fabricated Lgt. Treads (x2) 8389 | -7/Factory | Build established: Hacker-Mutant 8805 | -7/Factory | Core integrity fell below 50% 8838 | -7/Factory | Garrison activated, responded to threat 8886 | -7/Factory | Lost 3 parts (1p1u1w) 9098 | -7/Factory | Core integrity fell below 20% 9108 | -7/Factory | Discovered new exit (range 16) 9173 | -7/Factory | Entered another Factory area 9173 | -6/Factory | Evolved 2 slots: Utility x2 9201 | -6/Factory | Lost 3 parts (1p2n) 9620 | -6/Factory | Sucked down chute 9620 | -6/Factory | Entered Waste 9621 | -6/Waste | Met a frightened Derelict 9621 | -6/Waste | Joined by Warlord forces that had cleared the area 9732 | -6/Waste | Discovered new exit (range 12) 9740 | -6/Waste | A Compactor rumbled back to life 9741 | -6/Waste | Spotted C-40 Crusher 9747 | -6/Waste | Allies destroyed C-40 Crusher 9778 | -6/Waste | Lost 3 allies 9780 | -6/Waste | Entered Factory 9780 | -6/Factory | Accompanied by 18 allies 10093 | -6/Factory | Lost 3 allies 10318 | -6/Factory | Lost 4 allies 10466 | -6/Factory | Lost 5 allies 10497 | -6/Factory | Discovered new exit (range 7) 10630 | -6/Factory | Garrison activated, responded to threat 10636 | -6/Factory | P-60 Hacker assimilated allied L9-LJK(b) 11031 | -6/Factory | Repaired Hcp. Storage Unit 11786 | -6/Factory | Spotted B-75 Beast 11817 | -6/Factory | Discovered new exit (range 5) 11821 | -6/Factory | Entered Extension 11846 | -6/Extension | Spotted B-75 Beast 11993 | -6/Extension | Rescued a captive Derelict 12007 | -6/Extension | Build established: Hacker-Sprinter 12014 | -6/Extension | Identified exit to Factory 12014 | -6/Extension | Identified exit to Cetus 12042 | -6/Extension | Spotted B-75 Beast 12047 | -6/Extension | Entered Factory 12047 | -5/Factory | Evolved 2 slots: Utility x2 12077 | -5/Factory | Lost 5 parts (1p1n1u2w) 12121 | -5/Factory | Identified exit to Upper Caves 12317 | -5/Factory | Build established: Hacker-Mutant 12363 | -5/Factory | Fabricated Cld. Cesium-ion Thruster? 12711 | -5/Factory | Core integrity fell below 50% 12726 | -5/Factory | Core integrity fell below 20% 12732 | -5/Factory | Destroyed by C-35 Carver with Carbide Saw Last Messages --------------- 12682_ Cloaking Device destroyed. 12685_ Cld. Cesium-ion Thruster destroyed. 12687_ Slammed into C-35 Carver. 12689_ Point Defense System destroyed. 12689_ Slug penetrates Wall. 12690_ U-05 Engineer lays Concrete. 12691_ Slug penetrates Wall. 12691_ Imp. Sensor Array destroyed. 12691_ K-01 Serf cleans the Matter Pump. 12697_ ALERT: Rogue bot located, Programmers report to Factory Zone 6N. 12698_ Cloaking Device destroyed. 12699_ Power Maul severed. 12709_ Slug penetrates Wall. 12710_ Hacking Suite severed. 12712_ Penetrated by Slug. 12713_ Biomechanical Wings destroyed. 12723_ Slug penetrates Power Conduit. 12725_ Penetrated by Slug. 12725_ Slug penetrates Wall. [Achievement: 10k Club] Map ----- +----------------------------------------------------+ | ?????????????????????????????????????????????????? | | ?????????????????????????????????????????????????? | | ?????????????????????????????????????????????????? | | ?????????????????????????????????????????????????? | | ?????????????????????????????????????????????????? | | ?????????????????????????????????????????????????? | | ?????????????????????????????????????????????????? | | ?????????????????????????????????????????????????? | | ?????????????????????????????????????????????????? | | ?????????????????????????????????????????????????? | | ?????????????????????????????????????????????????? | | ?????????????????????????????????????????????????? | | ?????????????????????????????????????????????????? | | ?????????????????????????????????????????????????? | | ?????????????????? ??????????????????????????????? | | ?????????????????? ??????????????????????????????? | | ?????????????????# ??????????????????????????????? | | ??????????????#### ??????????????????????????????? | | ??????????????+ ??????????????????????????????? | | ??????????????# ??????????????????????????????? | | ??????????????# ?###########??????????????????? | | ??????????????# ## #??????????????????? | | ??????????????# ## #??????????????????? | | ??????????????# ## #??????????????????? | | ??????????????# # #??????????????????? | | ??????????????# # c c@ #??????????????????? | | ??????????????# #c""" """ #??????????????????? | | ??????????????+ + """ """ #??????????????????? | | ??????????????# # """ """ #??????????????????? | | ??????????????# ###########??????????????????? | | ????########### #????????????????????????????? | | ??? #????????????????????????????? | | ??? #????????????????????????????? | | ?? #????????????????????????????? | | #????????????????????????????? | | #????????????????????????????? | | ###"###########?????????????????????? | | # ??????????????????? | | # ??????????????##### | | # """"""""" ??????????????# | | # ??????????????# | | # """"""""" ??????????????????# | | # ??????????????# | | # # """"""""" ???????????????# | | # # ?????????????# | | # ###/########????????????????????# | | # #????????????????# | | # #????????????????# | | # #????????????????# | | # #######+#### #????????????????# | +----------------------------------------------------+ Best States ------------- Heat Dissipation 51 Energy Generation 31 Energy Capacity 375 Matter Stores 300 Matter Capacity 300 Sight Range 22 Robot Scan Range 15 Terrain Scan Density 10 Cloak Strength 3 Additional Mass Support 6 Armor Coverage 450 Resistance: EM 15 Propulsion Shielding 33 Point Defense Rating 80 Evasion (%) 64 Recoil Reduction 4 Offensive Hacking 30 Item Schematics ----------------- Lgt. Treads | -9/Materials | Scanalyzed Targeting Computer | -9/Materials | Scanalyzed Hvy. Particle Cannon | -8/Materials | Scanalyzed Imp. Signal Interpreter | -8/Materials | Scanalyzed Hacking Suite | -7/Factory | Scanalyzed Cld. Cesium-ion Thruster | -5/Factory | Scanalyzed Robot Schematics ------------------ None Fabricated ------------ Lgt. Treads | x2 | -7/Factory Lgt. Treads | x2 | -7/Factory Cld. Cesium-ion Thruster | x1 | -5/Factory Alien Tech Used ----------------- None Achievements -------------- 10k Club I Spy We Are Legion Challenges ------------ None Game ------ Seed SpreadTitaniumTerrabomb Manual? 0 Play Time 03:06:56 Cumulative 23.9 hours Start 2024.05.19 @ 20:24:15 End 2024.05.21 @ 20:20:15 Sessions 7 Manual Loads 0 Difficulty Rogue Special Mode None Game No. 41 Rogue 41 Adventurer 0 Explorer 0 Win Type - Total 0 Types 0/0/0/0/0/0/0/0/0 Lore% 15 Gallery% 19 Achievement% 19 Wizard Run 0 Options --------- Layout 0 ASCII 0 Keyboard 0 Movement Arrows Keybinds 0 Fullscreen 2 Font 18/SmallcapsGlow Map View 76x50 Zoom Use 0% Tactical HUD 1 Map Filters NONE Filters NONE Steam 1 RUN: cf6c0a41-8398-446a-b5b7-83fe39c826a8